Cogmind - Beta 11.1 @@@ ROGUE MODE // 2022.05.22 @ 14:04:20 Player: ChromeKnight Result: Destroyed by 8R-AWN with 8R-AWN's Boregun Performance ------------- Evolutions (0) 0 Regions Visited (3) 600 Robots Destroyed (10) 50 Value Destroyed (337) 337 Prototype IDs (23) 460 Alien Tech Used (0) 0 Bonus (-131) -131 TOTAL SCORE: 1316 Bonus ------- Follower Combat Kills 14 Aligned with FarCom 300 Friendly Fire -445 Cogmind --------- Core Integrity 0/250 Matter 167/300 Energy 100/100 System Corruption 2% Temperature Cool (0) Movement Walking (190) Ox1 Location -10/Exiles Parts ------- > --- POWER (1) -------- (None) > --- PROPULSION (2) --- Aluminum Leg Aluminum Leg > --- UTILITY (2) ------ Large Storage Unit Hardened Light Armor Plating > --- WEAPON (2) ------- Hammer > --- INVENTORY (15) --- Aluminum Leg Makeshift Flight Unit Improved Heat Sink High-capacity Matter Pod (88) Hardened Light Armor Plating Hardened Light Armor Plating Light Assault Rifle Peak State ------------ > --- POWER ------------ Light Ion Engine > --- PROPULSION ------- Light Treads Light Treads > --- UTILITY ---------- Large Storage Unit Hardened Light Armor Plating > --- WEAPON ----------- Light Assault Rifle Hammer > --- INVENTORY -------- Reinforced Deuterium Engine Fission Core Light Fission Core Aluminum Leg Aluminum Leg Aluminum Leg Makeshift Flight Unit Improved Heat Sink High-capacity Matter Pod Hardened Light Armor Plating Hardened Light Armor Plating Rocket Launcher Deploy-a-Sentry Deploy-a-Sentry Deploy-a-Sentry [Rating: 13] Favorites ----------- Power Light Ion Engine Engine Light Ion Engine Propulsion Light Treads Treads Light Treads Leg Aluminum Leg Utility Large Storage Unit Storage Large Storage Unit Protection Hardened Light Armor Plating Weapon Light Assault Rifle Ballistic Gun Light Assault Rifle Launcher Rocket Launcher Impact Weapon Hammer Build | -11 -10 -10 -10 ------- Run | Scr Mat Min Exi Slots Evolved . | . . . . Power . | . . . . Propulsion . | . . . . Utility . | . . . . Weapon . | . . . . Parts Attached 22 | 6 8 2 6 Power 4 | 1 2 1 . Engine 4 | 1 2 1 . Core . | . . . . Reactor . | . . . . Propulsion 5 | 2 1 . 2 Treads 3 | 2 1 . . Leg 2 | . . . 2 Wheel . | . . . . Hover . | . . . . Flight . | . . . . Utility 6 | 1 4 . 1 Device . | . . . . Storage 2 | 1 1 . . Processor . | . . . . Hackware . | . . . . Protection 4 | . 3 . 1 Artifact . | . . . . Weapon 7 | 2 1 1 3 Energy Gun . | . . . . Energy Cannon . | . . . . Ballistic Gun 4 | 2 1 1 . Ballistic Cannon . | . . . . Launcher 1 | . . . 1 Special Weapon . | . . . . Impact Weapon 2 | . . . 2 Slashing Weapon . | . . . . Piercing Weapon . | . . . . Special Melee Weapon . | . . . . Unidentified Prototypes . | . . . . Parts Lost 5 | . . 1 4 Power 1 | . . . 1 Propulsion 2 | . . . 2 Utility . | . . . . Weapon 2 | . . 1 1 Highest Loss Streak 4 | . . 1 4 To Critical Strikes 2 | . . . 2 Average Slot Usage (%) 93 | . 97 88 94 Engine 13 | . 14 14 13 Treads 27 | . 27 28 25 Storage 14 | . 14 14 14 Protection 13 | . 11 14 14 Ballistic Gun 19 | . 28 17 13 Impact Weapon 3 | . . . 10 Naked Turns . | . . . . Heaviest Build 34 | 13 33 33 34 Greatest Support 40 | 40 40 40 40 Greatest Overweight (x) 1 | . 1 . 1 Average Overweight (x) . | . . . . Largest Inventory Capacity 15 | 8 15 15 15 Average Capacity 13 | 6 12 15 15 Most Carried 15 | 2 15 15 15 Average Carried 11 | . 7 14 13 Final Capacity 15 | 8 15 15 15 Final Carried 15 | 2 15 15 7 Class Distribution -------------------- 100% | Mutant Dominant Class ---------------- Mutant | -10/Materials Mutant | -10/Mines Mutant | -10/Exiles Resources | -11 -10 -10 -10 ----------- Run | Scr Mat Min Exi Matter Collected 621 | 173 268 180 . Remotely . | . . . . Salvage Created 463 | . 350 99 14 Parts 17 | . 14 3 . Haulers Intercepted . | . . . . Recyclers Shooed 1 | . . 1 . Parts Field Recycled . | . . . . Retrieved Matter . | . . . . Parts Self-Destructed . | . . . . Prevented . | . . . . Kills | -11 -10 -10 -10 ------- Run | Scr Mat Min Exi Combat Hostiles Destroyed 12 | . 6 3 3 Guns 10 | . 6 3 1 AOE 2 | . . . 2 Classes Destroyed 4 | . 2 1 1 Recycler 1 | . 1 . . Swarmer 1 | . . 1 . Grunt 8 | . 6 2 . Assembled 5 | . . . 5 Best Kill Streak 4 | . 4 1 3 Combat Bots Only 3 | . 3 1 3 Max Kills in Single Turn 2 | . 1 1 2 Gunslinging . | . . . . Exploded 1 | . . . 1 Melee . | . . . . Uniques/NPCs Destroyed . | . . . . Combat | -11 -10 -10 -10 -------- Run | Scr Mat Min Exi Damage Taken 1271 | . 359 306 606 Core 252 | . 33 74 145 Absorbed by Shields . | . . . . Core Remaining (%) 100 | 100 . . . Volleys Fired 61 | . 29 23 9 Largest 2 | . 2 2 2 Hottest 53 | . 40 40 53 Shots Fired 101 | . 58 30 13 Gun 97 | . 58 30 9 Cannon . | . . . . Launcher 4 | . . . 4 Special . | . . . . Kinetic 97 | . 58 30 9 Thermal . | . . . . Explosive 4 | . . . 4 Electromagnetic . | . . . . Robot Hit Streak 12 | . 12 10 2 Robot Miss Streak 4 | . 2 1 4 Penetration Max . | . . . . Secondary Targets 3 | . 3 . . Max Gunslinging Chain 1 | . 1 . . Shots Hit Robots 82 | . 42 26 14 Core Hits 34 | . 15 8 11 Critical Kills . | . . . . Critical Parts Destroyed . | . . . . Critical Strikes . | . . . . Melee Attacks 15 | . . . 15 Impact 15 | . . . 15 Slashing . | . . . . Piercing . | . . . . Sneak Attacks . | . . . . Combat Hostiles . | . . . . Follow-up Attacks . | . . . . Damage Inflicted 1392 | . 464 238 690 Guns 735 | . 464 238 33 Cannons . | . . . . Explosions 441 | . . . 441 Melee 216 | . . . 216 Ramming . | . . . . Kinetic 735 | . 464 238 33 Thermal . | . . . . Explosive 441 | . . . 441 Electromagnetic . | . . . . Impact 216 | . . . 216 Slashing . | . . . . Piercing . | . . . . Highest Corruption 2 | . 2 2 2 Average Corruption 2 | . 2 2 2 Corruption Purged . | . . . . Corruption Blocked . | . . . . Effects 21 | . 1 10 10 Message Errors 6 | . . 3 3 Matter Fused 7 | . 1 2 4 Heat Flow Errors 3 | . . 1 2 Energy Discharges 2 | . . 2 . Data Loss (minor) 1 | . . 1 . Data Loss (major) 2 | . . 1 1 Overload Shots . | . . . . Overflow Damage 45 | . . . 45 Projectiles . | . . . . Explosions 29 | . . . 29 Melee 16 | . . . 16 Knockbacks . | . . . . Impact . | . . . . Kinetic . | . . . . Secondary . | . . . . Self-Inflicted Damage . | . . . . Shots . | . . . . Rammed . | . . . . Targets Rammed . | . . . . Kicked . | . . . . Crushed . | . . . . Highest Temperature 232 | . 86 224 232 Average Temperature 54 | . 25 79 65 Received Heat Transfer 417 | . 201 216 . Siege Activations . | . . . . Robots Corrupted . | . . . . Combat Hostiles . | . . . . Parts Fried . | . . . . Impact Corruptions 1 | . . . 1 Robots Melted . | . . . . Combat Hostiles . | . . . . Parts Melted . | . . . . Heat Transferred . | . . . . Parts Sabotaged . | . . . . Parts Stolen . | . . . . Parts Stripped . | . . . . Power Chain Reactions . | . . . . Missiles Intercepted . | . . . . Alert | -11 -10 -10 -10 ------- Run | Scr Mat Min Exi Peak Influence 129 | . 129 93 . Initial . | . . . . Average 33 | . 32 37 . Maximum Alert Level . | . . . . Low Security (%) 100 | 100 100 100 . Level 1 . | . . . . Level 2 . | . . . . Level 3 . | . . . . Level 4 . | . . . . Level 5 . | . . . . High Security . | . . . . Max Security . | . . . . Squads Dispatched 1 | . 1 . . Investigation . | . . . . Extermination . | . . . . Reinforcement 1 | . 1 . . Assault . | . . . . Garrison . | . . . . Intercept . | . . . . Searches Triggered . | . . . . Construction Impeded . | . . . . Haulers Reinforced . | . . . . Active Scanning Responses . | . . . . Cargo Convoy Interrupts . | . . . . Stealth | -11 -10 -10 -10 --------- Run | Scr Mat Min Exi Distress Signals 1 | . 1 . . Communications Jammed . | . . . . Distress Signals . | . . . . Times Spotted 24 | . 13 5 6 Peak Tracking Total 7 | . 3 3 7 Tactical Retreats 1 | . 1 . . Traps | -11 -10 -10 -10 ------- Run | Scr Mat Min Exi Traps Triggered 3 | . 3 . . Indirectly . | . . . . Trap Hack Attempts . | . . . . Triggered . | . . . . Disarmed . | . . . . Reprogrammed . | . . . . Reused . | . . . . Traps Extracted . | . . . . Installed . | . . . . Triggered . | . . . . Machines | -11 -10 -10 -10 ---------- Run | Scr Mat Min Exi Machines Disabled 4 | . . 1 3 Max in Single Turn 1 | . . . 1 Machines Sabotaged . | . . . . Garrisons Compromised . | . . . . Overloaded Fab Kills . | . . . . Hacking | -11 -10 -10 -10 --------- Run | Scr Mat Min Exi Machines Accessed 5 | . 4 . 1 Terminals 4 | . 4 . . Fabricators . | . . . . Repair Stations . | . . . . Recycling Units . | . . . . Scanalyzers . | . . . . Garrison Access . | . . . . Total Hacks 11 | . 10 . 1 Successful 5 | . 4 . 1 Failed 6 | . 6 . . Catastrophic . | . . . . Database Lockouts . | . . . . Manual 9 | . 8 . 1 Terminals 10 | . 10 . . Fabricators . | . . . . Repair Stations . | . . . . Recycling Units . | . . . . Scanalyzers . | . . . . Garrison Access . | . . . . Terminal Hacks 3 | . 2 . 1 Robot Analysis 1 | . 1 . . Zone Layout 1 | . 1 . . EX-Prototype ID Bank 1 | . . . 1 Fabricator Hacks . | . . . . Repair Station Hacks . | . . . . Recycling Unit Hacks . | . . . . Scanalyzer . | . . . . Garrison Access Hacks . | . . . . Unauthorized Hacks 2 | . 2 . . Terminals 2 | . 2 . . Botnet 2 | . 2 . . Fabricators . | . . . . Repair Stations . | . . . . Recycling Units . | . . . . Scanalyzers . | . . . . Garrison Access . | . . . . Data Cores Recovered . | . . . . Used . | . . . . Hacking Detections 4 | . 4 . . Full Trace Events . | . . . . Feedback Events . | . . . . Feedback Blocked . | . . . . Robot Schematics Acquired . | . . . . Robots Built . | . . . . Authchips . | . . . . Time . | . . . . Total Robot Build Rating . | . . . . Part Schematics Acquired . | . . . . Parts Built . | . . . . Authchips . | . . . . Time . | . . . . Total Part Build Rating . | . . . . Parts Repaired . | . . . . Time . | . . . . Parts Recycled . | . . . . Recycled Matter . | . . . . Retrieved Matter . | . . . . Retrieved Components . | . . . . Parts Scanalyzed . | . . . . Part Schematics Acquired . | . . . . Parts Damaged . | . . . . Bothacking | -11 -10 -10 -10 ------------ Run | Scr Mat Min Exi Used RIF Installer . | . . . . Robots Hacked . | . . . . Non-combat . | . . . . Combat . | . . . . Robot Hacks Applied . | . . . . Relay Couplers Released . | . . . . Fabnet Peak Effective % . | . . . . Robots Rewired . | . . . . Allies Hacked . | . . . . Hacks Repelled . | . . . . Allies | -11 -10 -10 -10 -------- Run | Scr Mat Min Exi Total Allies 2 | . . 2 . Largest Group 2 | . . 2 . Highest-Rated Group 49 | . . 49 . Highest-Rated Ally 31 | . . 31 . Total Orders . | . . . . Ally Attacks 22 | . . 11 11 Total Damage 694 | . . 169 525 Kills 2 | . . 2 . Allies Corrupted . | . . . . Allies Melted . | . . . . Turrets Deployed 3 | . . . 3 Intel | -11 -10 -10 -10 ------- Run | Scr Mat Min Exi Robot Analysis Total 1 | . 1 . . Derelict Logs Recovered 1 | . . 1 . Drone Launches . | . . . . Drone Recoveries . | . . . . Exploration | -11 -10 -10 -10 ------------- Run | Scr Mat Min Exi Turns Passed 2378 | 65 820 738 755 Spaces Moved 1264 | 35 400 408 421 Core 1 | 1 . . . Treads 1256 | 34 400 408 414 Legs 7 | . . . 7 Wheels . | . . . . Hover . | . . . . Flight . | . . . . Fastest Speed 50 | 50 160 160 160 Average Speed 160 | 156 160 160 160 Slowest Speed 240 | 160 240 160 190 Overloaded Moves . | . . . . Propulsion Burnouts . | . . . . Robots Hopped . | . . . . Cave-ins Triggered . | . . . . Exploration Rate (%) 53 | 3 70 81 58 Regions Visited 3 Branch Regions 2 Pre-discovered Areas 1 | . . 1 . Known Exits Taken . | . . . . Unknown Exits Taken 3 | 1 1 1 . Scrap Searched . | . . . . Spaces Dug . | . . . . Terrain Destroyed 32 | . . . 32 Melee . | . . . . Projectile . | . . . . AOE 32 | . . . 32 Terrain Rammed . | . . . . Walls Destroyed . | . . . . Machines Disabled . | . . . . Actions | -11 -10 -10 -10 --------- Run | Scr Mat Min Exi Total 1505 | 42 526 469 468 Wait 98 | . 65 33 . Move 1261 | 34 399 407 421 Hop . | . . . . Pick Up 27 | 2 18 1 6 Fast Attach 10 | 6 4 . . Attach 4 | . 1 . 3 Detach . | . . . . Swap 8 | . 3 2 3 Drop 21 | . 7 3 11 Fire 61 | . 29 23 9 Melee 15 | . . . 15 Ram . | . . . . Kick . | . . . . Crush . | . . . . Escape Stasis . | . . . . Rewire . | . . . . Trap . | . . . . Miscellaneous . | . . . . Route ------- -11/Scrapyard -10/Materials (discovered 3 exits: [*Mat x2] / [*Min]) -10/Mines (discovered 2 exits: [*Mat] / *Exi) -10/Exiles History --------- Turn | Location | Event 7 | -11/Scrapyard | Discovered new exit (range 15) 66 | -11/Scrapyard | Entered Materials 312 | -10/Materials | Build established: Mutant 330 | -10/Materials | Discovered new exit (range 12) 527 | -10/Materials | Discovered new exit (range 10) 637 | -10/Materials | Discovered new exit (range 9) 886 | -10/Materials | Entered Mines 894 | -10/Mines | Learned location of Zion (-6) 1088 | -10/Mines | Discovered new exit (range 10) 1617 | -10/Mines | Deemed a non-threat by the Exiles lab entrance 1617 | -10/Mines | Discovered new exit (range 5) 1624 | -10/Mines | Entered Exiles 1666 | -10/Exiles | Met 8R-AWN 1693 | -10/Exiles | Met EX-HEX 1736 | -10/Exiles | Met EX-BIN 1756 | -10/Exiles | Aligned with FarCom system 1757 | -10/Exiles | Given EX-Vault access code 1797 | -10/Exiles | Opened EX-Vault 1809 | -10/Exiles | Found Deploy-a-Sentry 1811 | -10/Exiles | Found Deploy-a-Sentry 1814 | -10/Exiles | Found Deploy-a-Sentry 1852 | -10/Exiles | Warned to stay clear of 0b10 Research branches 2077 | -10/Exiles | Met EX-DEC 2275 | -10/Exiles | DAS Turret deployed 2284 | -10/Exiles | DAS Turret deployed 2292 | -10/Exiles | DAS Turret deployed 2303 | -10/Exiles | Attacked by the Exiles 2320 | -10/Exiles | Core integrity fell below 50% 2356 | -10/Exiles | Core integrity fell below 20% 2375 | -10/Exiles | Lost 4 parts (1p2n1w) 2379 | -10/Exiles | Destroyed by 8R-AWN with 8R-AWN's Boregun Last Messages --------------- 02359_ Penetrated by HV Slug. 02359_ HV Slug penetrates Earth. 02359_ Penetrated by HV Slug. 02359_ HV Slug penetrates Earth. 02363_ Penetrated by HV Slug. 02363_ HV Slug penetrates Wall. 02363_ HV Slug penetrates Machine. 02363_ Machine disabled. 02363_ HV Slug penetrates Wall. 02364_ Destroyed Prototype Processor. 02364_ 8R-AWN system corrupted by crushing effect. 02367_ HV Slug penetrates Wall. 02367_ Penetrated by HV Slug. 02367_ HV Slug penetrates Assembled Analyzer. 02367_ Assembled Analyzer disabled. 02371_ Penetrated by HV Slug. 02371_ HV Slug penetrates Assembled Analyzer. 02371_ Penetrated by HV Slug. 02375_ HV Slug penetrates Wall. 02379_ Penetrated by HV Slug. Map ----- +----------------------------------------------------+ | """#?????????????????????????????????????????????? | | """#?????????????????????????????????????????????? | | """#?????????????????????????????????????????????? | | """#?????????????????????????????????????????????? | | """#?????????????????????????????????????????????? | | """#?????????????????????????????????????????????? | | """#?????????????????????????????????????????????? | | """#?????????????????????????????????????????????? | | """"?????????????????????????????????????????????? | | """#?????????????????????????????????????????????? | | """"?????????????????????????????????????????????? | | #?????????????????????????????????????????????? | | """#?????????????????????????????????????????????? | | ####?????????????????????????????????????????????? | | ?????????????????????????????????????????????????? | | ?????????????????????????????????????????????????? | | ?????????????????????????????????????????????? ??? | | ##########???????????????????????????????????? ? | | """""""""##??????????????????????????????????? | | " """ """"##?????????????????????????????????# # | | "" " #???????????????????????????????## # | | " """#???????????????????????????????# | | " "#???????????######??????????????# | | " "##?????????## t%;#?????????????## | | ""###??###### %##????????????## #? | | ; ;; @g##????????????# #? | | "#??####; % ###????????### #?? | | ##???# % ########## #?? | | ##?## #""""## #??? | | ### ##?? | | ## = ! #?? | | #### = ##? | | ""#?#"""""#### ## | | # "##?#######??#### | | #;;###??????????????##### | | ####????????????????????### | | " ??????????????????????????### | | "" ?????????????????????????????### | | ""#" ??????????????????????????????#" | | """## ??????????????????????????????#### | | """#?## # ??????????????????????????????????# | | ##?????# ##??????????????????????????????????# | | ?????????## ????????????????????????????????????? | | ???????????#?????????????????????????????????????? | | ?????????????????????????????????????????????????? | | ?????????????????????????????????????????????????? | | ?????????????????????????????????????????????????? | | ?????????????????????????????????????????????????? | | ?????????????????????????????????????????????????? | | ?????????????????????????????????????????????????? | +----------------------------------------------------+ Best States ------------- Heat Dissipation 25 Energy Generation 10 Energy Capacity 250 Matter Stores 300 Matter Capacity 300 Sight Range 16 Terrain Scan Density 10 Armor Coverage 150 Evasion (%) 40 Recoil Reduction 2 Item Schematics ----------------- None Robot Schematics ------------------ None Fabricated ------------ Nothing Alien Tech Used ----------------- None Achievements -------------- None Challenges ------------ None Game ------ Seed HelicalGravmagTendrils Manual? 0 Play Time 00:16:10 Cumulative 278.7 hours Start 2022.05.22 @ 12:48:22 End 2022.05.22 @ 14:04:20 Sessions 1 Manual Loads 0 Difficulty Rogue Special Mode None Game No. 519 Rogue 364 Adventurer 148 Explorer 7 Win Type - Total 10 Types 8/0/1/1/0/0/0/0/0 Lore% 72 Gallery% 84 Achievement% 66 Wizard Run 0 Options --------- ASCII 0 Keyboard 0 Movement Numpad Keybinds 0 Fullscreen 1 Font 18/SmallcapsGlow Map View 76x50 Tactical HUD 1 Map Filters NONE Filters NONE Steam 1 RUN: 3aa8e14d-e18c-487e-b963-cd609e3bcffd